Cogmind - Beta 15 *** ADVENTURER MODE // 2025.07.23 @ 08:44:59 Player: LegoMDS Result: Destroyed by YI-UF0 with YI-UF0's Doublenader Performance ------------- Evolutions (1) 500 Regions Visited (3) 600 Robots Destroyed (36) 180 Value Destroyed (879) 879 Prototype IDs (4) 80 Alien Tech Used (0) 0 Bonus (0) 0 TOTAL SCORE: 2239 Bonus ------- None Cogmind --------- Core Integrity 0/400 Matter 202/300 Energy 51/100 System Corruption 4% Temperature Cool (22) Movement Walking (190) Ox1 Location -9/Mines Parts ------- > --- POWER (1) -------- (None) > --- PROPULSION (3) --- Aluminum Leg > --- UTILITY (3) ------ Medium Storage Unit Improved Targeting Computer Hacking Suite > --- WEAPON (2) ------- Beam Rifle Autogun > --- INVENTORY (10) --- Cooled Ion Engine Heat Sink Light Armor Plating Mini Grenade Launcher Datajack Katana Peak State ------------ > --- POWER ------------ Light Nuclear Core > --- PROPULSION ------- Aluminum Leg Improved Aluminum Leg Improved Aluminum Leg > --- UTILITY ---------- Improved Heat Sink Cooling System Small Storage Unit > --- WEAPON ----------- Beam Rifle Heavy Assault Rifle > --- INVENTORY -------- Ion Engine Heat Sink Targeting Computer Heavy Assault Rifle Autogun Autogun Mini Grenade Launcher Katana [Rating: 19] Favorites ----------- Power Light Nuclear Core Engine Ion Engine Power Core Light Nuclear Core Propulsion Aluminum Leg Leg Aluminum Leg Flight Unit Flight Unit Utility Small Storage Unit Device Improved Heat Sink Storage Small Storage Unit Processor Improved Targeting Computer Hackware Hacking Suite Weapon Light Assault Rifle Energy Gun Beam Rifle Ballistic Gun Light Assault Rifle Launcher Mini Grenade Launcher Slashing Weapon Katana Build | -11 -10 -9 -9 ------- Run | Yrd Mat Mat Min Slots Evolved 2 | . . 2 . Power . | . . . . Propulsion 1 | . . 1 . Utility 1 | . . 1 . Weapon . | . . . . Parts Attached 33 | 6 . 22 5 Power 5 | 1 . 4 . Engine 4 | 1 . 3 . Core 1 | . . 1 . Reactor . | . . . . Propulsion 11 | 2 . 9 . Treads . | . . . . Leg 7 | 2 . 5 . Wheel . | . . . . Hover . | . . . . Flight 4 | . . 4 . Utility 6 | 1 . 3 2 Device 2 | . . 2 . Storage 2 | 1 . 1 . Processor 1 | . . . 1 Hackware 1 | . . . 1 Protection . | . . . . Artifact . | . . . . Weapon 11 | 2 . 6 3 Energy Gun 3 | . . 3 . Energy Cannon . | . . . . Ballistic Gun 6 | 2 . 3 1 Ballistic Cannon . | . . . . Launcher 1 | . . . 1 Special Weapon . | . . . . Impact Weapon . | . . . . Slashing Weapon 1 | . . . 1 Piercing Weapon . | . . . . Special Melee Weapon . | . . . . Unidentified Prototypes 2 | . . 2 . Parts Lost 12 | . . 6 6 Power 2 | . . 1 1 Propulsion 7 | . . 5 2 Utility 2 | . . . 2 Weapon 1 | . . . 1 Highest Loss Streak 4 | . . 4 4 To Critical Strikes . | . . . . Average Backups 6 | 1 3 6 7 Power 1 | . 1 1 1 Propulsion . | . 2 . . Utility 2 | . . 2 2 Weapon 2 | . . 2 2 Tool/Special . | . . . . Unused Backups 9 | . . 5 4 Power 3 | . . 2 1 Propulsion . | . . . . Utility 4 | . . 2 2 Weapon 1 | . . 1 . Tool/Special 1 | . . . 1 Average Slot Usage (%) 88 | . 85 88 87 Engine 6 | . 14 4 10 Core 4 | . . 5 . Leg 29 | . 28 30 25 Device 11 | . . 13 6 Storage 11 | . 14 11 11 Energy Gun 7 | . . 9 3 Ballistic Gun 13 | . 28 12 9 Peak Build Rating 19 | 6 6 19 18 Average Rating 13 | 4 6 14 15 On Entrance 7 | . 6 6 18 Naked Turns . | . . . . Heaviest Build 27 | 13 13 27 27 Greatest Support 36 | 20 20 36 33 Greatest Overweight (x) 3 | . . 3 1 Average Overweight (x) . | . . . . Largest Inventory Capacity 10 | 8 8 10 10 Average Capacity 8 | 6 8 8 10 Most Carried 9 | 5 6 9 9 Average Carried 6 | 1 4 6 7 Final Capacity 10 | 8 8 10 10 Final Carried 9 | 1 6 9 6 Class Distribution -------------------- 52% | Scavenger-Mutant 42% | Mutant 4% | Hacker-Mutant Dominant Class ---------------- Mutant | -10/Materials Scavenger-Mutant | -9/Materials Hacker-Mutant | -9/Mines Resources | -11 -10 -9 -9 ----------- Run | Yrd Mat Mat Min Matter Collected 834 | 200 88 459 87 Remotely . | . . . . Salvage Created 1277 | . 130 1019 128 Parts 96 | . 12 78 6 Haulers Intercepted 2 | . . 2 . Recyclers Shooed 1 | . 1 . . Parts Field Recycled . | . . . . Retrieved Matter . | . . . . Parts Self-Destructed . | . . . . Prevented . | . . . . Kills | -11 -10 -9 -9 ------- Run | Yrd Mat Mat Min Combat Hostiles Destroyed 43 | . 3 22 18 Melee 1 | . . . 1 Guns 32 | . 3 22 7 AOE 10 | . . . 10 Classes Destroyed 10 | . 2 7 1 Hauler 2 | . . 2 . Recycler 1 | . 1 . . Operator 1 | . . 1 . Watcher 3 | . . 3 . Swarmer 11 | . 3 4 4 Grunt 11 | . . 11 . Brawler 1 | . . 1 . Duelist 1 | . . 1 . Sentry 5 | . . 5 . Assembled 14 | . . . 14 Best Kill Streak 10 | . 3 6 10 Combat Bots Only 10 | . 3 6 10 Max Kills in Single Turn 2 | . 1 2 2 Gunslinging 1 | . . 1 . Exploded 2 | . . . 2 Melee 1 | . . . 1 Uniques/NPCs Destroyed . | . . . . Combat | -11 -10 -9 -9 -------- Run | Yrd Mat Mat Min Hostile Shots Fired 240 | . 13 149 78 Missed 78 | . 7 49 22 Hits 162 | . 6 100 56 Melee 22 | . . 5 17 Projectile 140 | . 6 95 39 AOE 6 | . . . 6 Critical Strikes 6 | . 1 5 . Damage Taken 1863 | . 39 956 868 Core 423 | . 13 191 219 Absorbed by Shields . | . . . . Ignored by Resistances 558 | . 12 292 254 Core Remaining (%) 97 | 100 94 . . Volleys Fired 118 | . 7 89 22 Largest 2 | . 2 2 2 Hottest 85 | . 40 85 79 Shots Fired 224 | . 14 175 35 Gun 219 | . 14 175 30 Cannon . | . . . . Launcher 5 | . . . 5 Special . | . . . . Kinetic 141 | . 14 105 22 Thermal 78 | . . 70 8 Explosive 5 | . . . 5 Electromagnetic . | . . . . Robot Hit Streak 18 | . 3 18 6 Robot Miss Streak 4 | . 2 2 4 Penetration Max . | . . . . Secondary Targets 9 | . 1 8 . Max Gunslinging Chain 1 | . 1 1 . Shots Hit Robots 170 | . 7 140 23 Core Hits 96 | . 5 58 33 Critical Kills . | . . . . Critical Parts Destroyed . | . . . . Critical Strikes 7 | . . 6 1 Burn 7 | . . 6 1 Melee Attacks 3 | . . . 3 Impact . | . . . . Slashing 3 | . . . 3 Piercing . | . . . . Sneak Attacks . | . . . . Combat Hostiles . | . . . . Follow-up Attacks . | . . . . Damage Inflicted 2797 | . 76 1644 1077 Guns 2031 | . 76 1642 313 Cannons . | . . . . Explosions 692 | . . . 692 Melee 72 | . . . 72 Ramming 2 | . . 2 . Kinetic 1126 | . 76 822 228 Thermal 905 | . . 820 85 Explosive 692 | . . . 692 Electromagnetic . | . . . . Impact . | . . . . Slashing 72 | . . . 72 Piercing . | . . . . Highest Corruption 4 | . . . 4 Average Corruption 4 | . . . 4 Corruption Purged . | . . . . Corruption Blocked . | . . . . Effects 2 | . . . 2 Message Errors 1 | . . . 1 Matter Fused 1 | . . . 1 Overload Shots . | . . . . Overflow Damage 1 | . . . 1 Projectiles . | . . . . Explosions 1 | . . . 1 Melee . | . . . . Knockbacks . | . . . . Impact . | . . . . Kinetic . | . . . . Secondary . | . . . . Self-Inflicted Damage 86 | . . . 86 Shots 3 | . . . 3 Rammed . | . . . . Targets Rammed 1 | . . 1 . Kicked 1 | . . 1 . Crushed . | . . . . Highest Temperature 234 | . . 234 22 Average Temperature 96 | . . 102 5 Received Heat Transfer 467 | . . 447 20 Siege Activations . | . . . . Martial Activations . | . . . . Shielding Activations . | . . . . Robots Disrupted . | . . . . Combat Hostiles . | . . . . Robots Corrupted . | . . . . Combat Hostiles . | . . . . Parts Fried . | . . . . Impact Corruptions . | . . . . Robots Melted . | . . . . Combat Hostiles . | . . . . Parts Melted 4 | . . 4 . Heat Transferred 2775 | . . 2479 296 Parts Sabotaged . | . . . . Parts Stolen . | . . . . Parts Stripped . | . . . . Power Chain Reactions . | . . . . Alert | -11 -10 -9 -9 ------- Run | Yrd Mat Mat Min Maximum Alert Level 1 | . . 1 . Low Security (%) 93 | 100 100 91 100 Level 1 6 | . . 8 . Level 2 . | . . . . Level 3 . | . . . . Level 4 . | . . . . Level 5 . | . . . . High Security . | . . . . Max Security . | . . . . Peak Influence 216 | . 70 216 133 Initial 53 | . . 6 53 Average 102 | . 39 116 93 Influence Increases 883 | . 79 677 127 Destroy 0b10 Robot/C 580 | . 60 440 80 Destroy 0b10 Robot/NC 35 | . 5 30 . Destroy Leader 140 | . 10 120 10 Successful Hack 16 | . 4 12 . Destroy Structure 37 | . . . 37 Lose Combat Pursuer 75 | . . 75 . Influence Decreases 843 | . 60 533 250 Entered New Map 123 | . . 13 110 Time Decay 614 | . 60 474 80 Lost Part 106 | . . 46 60 Squads Dispatched 4 | . . 4 . Investigation 2 | . . 2 . Extermination . | . . . . Reinforcement 2 | . . 2 . Assault . | . . . . Garrison . | . . . . Intercept . | . . . . Searches Triggered . | . . . . Construction Impeded . | . . . . Haulers Reinforced . | . . . . Active Scanning Responses . | . . . . Cargo Convoy Interrupts . | . . . . Stealth | -11 -10 -9 -9 --------- Run | Yrd Mat Mat Min Distress Signals 4 | . . 4 . Communications Jammed . | . . . . Distress Signals . | . . . . Times Spotted 62 | . 4 38 20 Peak Tracking Total 10 | . 3 8 10 Tactical Retreats 3 | . . 2 1 Traps | -11 -10 -9 -9 ------- Run | Yrd Mat Mat Min Traps Triggered 1 | . . 1 . Indirectly . | . . . . Trap Hack Attempts . | . . . . Triggered . | . . . . Disarmed . | . . . . Reprogrammed . | . . . . Reused . | . . . . Traps Extracted . | . . . . Installed . | . . . . Triggered . | . . . . Machines | -11 -10 -9 -9 ---------- Run | Yrd Mat Mat Min Machines Disabled . | . . . . Max in Single Turn . | . . . . Machines Repaired . | . . . . Machines Dismantled . | . . . . Machines Sabotaged . | . . . . Overloaded Fab Kills . | . . . . Hacking | -11 -10 -9 -9 --------- Run | Yrd Mat Mat Min Machines Accessed 9 | . 1 8 . Terminals 7 | . 1 6 . Fabricators . | . . . . Repair Stations . | . . . . Recycling Units . | . . . . Scanalyzers 2 | . . 2 . Garrison Access . | . . . . Total Hacks 23 | . 1 22 . Successful 13 | . 1 12 . Failed 10 | . . 10 . Catastrophic . | . . . . Database Lockouts . | . . . . Manual . | . . . . Terminals 15 | . 1 14 . Fabricators . | . . . . Repair Stations . | . . . . Recycling Units . | . . . . Scanalyzers 8 | . . 8 . Garrison Access . | . . . . Terminal Hacks 7 | . 1 6 . Prototype ID Bank 1 | . . 1 . Branch Access Points 1 | . . 1 . Hauler Manifests 2 | . 1 1 . Registered Components 1 | . . 1 . Registered Prototypes 1 | . . 1 . Zone Layout 1 | . . 1 . Fabricator Hacks . | . . . . Repair Station Hacks . | . . . . Recycling Unit Hacks . | . . . . Scanalyzer 6 | . . 6 . Insert Component 3 | . . 3 . Analyze 3 | . . 3 . Garrison Access Hacks . | . . . . Unauthorized Hacks . | . . . . Terminals . | . . . . Fabricators . | . . . . Repair Stations . | . . . . Recycling Units . | . . . . Scanalyzers . | . . . . Garrison Access . | . . . . Data Cores Recovered . | . . . . Used . | . . . . Hacking Detections 6 | . . 6 . Full Trace Events 1 | . . 1 . Feedback Events . | . . . . Feedback Blocked . | . . . . Robot Schematics Acquired . | . . . . Robots Built . | . . . . Authchips . | . . . . Time . | . . . . Total Robot Build Rating . | . . . . Part Schematics Acquired 3 | . . 3 . Parts Built . | . . . . Authchips . | . . . . Time . | . . . . Total Part Build Rating . | . . . . Parts Repaired . | . . . . Time . | . . . . Parts Recycled . | . . . . Recycled Matter . | . . . . Retrieved Matter . | . . . . Retrieved Components . | . . . . Parts Scanalyzed 3 | . . 3 . Part Schematics Acquired 3 | . . 3 . Parts Damaged . | . . . . Bothacking | -11 -10 -9 -9 ------------ Run | Yrd Mat Mat Min Used RIF Installer . | . . . . Robots Hacked . | . . . . Non-combat . | . . . . Combat . | . . . . Robot Hacks Applied . | . . . . Relay Couplers Released . | . . . . Fabnet Peak Effective % . | . . . . Robots Rewired . | . . . . Allies Hacked . | . . . . Hacks Repelled . | . . . . Allies | -11 -10 -9 -9 -------- Run | Yrd Mat Mat Min Total Allies . | . . . . Largest Group . | . . . . Highest-Rated Group . | . . . . Highest-Rated Ally . | . . . . Total Orders . | . . . . Ally Attacks . | . . . . Total Damage . | . . . . Kills . | . . . . Allies Corrupted . | . . . . Allies Melted . | . . . . Intel | -11 -10 -9 -9 ------- Run | Yrd Mat Mat Min Active Infowar (turns) . | . . . . Robot Analysis Total . | . . . . Derelict Logs Recovered 1 | . . . 1 Drone Launches . | . . . . Drone Recoveries . | . . . . Exploration | -11 -10 -9 -9 ------------- Run | Yrd Mat Mat Min Turns Passed 1522 | 62 126 1167 167 Spaces Moved 885 | 47 85 693 60 Core 25 | 10 . 15 . Treads . | . . . . Legs 846 | 37 85 664 60 Wheels . | . . . . Hover . | . . . . Flight 14 | . . 14 . Fastest Speed 34 | 50 120 34 120 Average Speed 122 | 105 120 119 164 Slowest Speed 200 | 120 120 200 190 Overloaded Moves . | . . . . Propulsion Burnouts . | . . . . Robots Hopped . | . . . . Potential Cave-ins . | . . . . Cave-ins Triggered . | . . . . Exploration Rate (%) 23 | 5 20 58 10 Regions Visited 3 Branch Regions 1 Pre-discovered Areas . | . . . . Known Exits Taken 1 | . . 1 . Unknown Exits Taken 2 | 1 1 . . Scrap Searched . | . . . . Spaces Dug . | . . . . Terrain Destroyed 53 | . . . 53 Melee . | . . . . Projectile . | . . . . AOE 53 | . . . 53 Terrain Rammed . | . . . . Walls Destroyed . | . . . . Machines Disabled . | . . . . Actions | -11 -10 -9 -9 --------- Run | Yrd Mat Mat Min Total 1127 | 59 96 880 92 Wait 21 | . . 21 . Move 882 | 46 84 692 60 Hop . | . . . . Pick Up 38 | 7 5 26 . Fast Attach 4 | . . 4 . Attach 20 | 6 . 11 3 Detach . | . . . . Swap 18 | . . 14 4 Drop 22 | . . 22 . Fire 118 | . 7 89 22 Melee 3 | . . . 3 Ram . | . . . . Kick 1 | . . 1 . Crush . | . . . . Escape Stasis . | . . . . Rewire . | . . . . Trap . | . . . . Miscellaneous . | . . . . Route ------- -11/Scrapyard -10/Materials -9/Materials (discovered 3 exits: [*Mat] / *Min x2) -9/Mines History --------- Turn | Location | Event 21 | -11/Scrapyard | Discovered new exit (range 14) 63 | -11/Scrapyard | Entered Materials 164 | -10/Materials | Discovered new exit (range 16) 189 | -10/Materials | Entered another Materials area 189 | -9/Materials | Evolved 2 slots: Propulsion x1, Utility x1 258 | -9/Materials | Lost 4 parts (4n) 318 | -9/Materials | Build established: Mutant 714 | -9/Materials | Discovered new exit (range 15) 883 | -9/Materials | Discovered new exit (range 15) 922 | -9/Materials | Build established: Scavenger-Mutant 982 | -9/Materials | Discovered new exit (range 7) 1176 | -9/Materials | Identified exit to Mines 1356 | -9/Materials | Entered Mines 1357 | -9/Mines | Assembled infested the area 1394 | -9/Mines | Learned location of 1 exit from Materials 1398 | -9/Mines | Core integrity fell below 50% 1448 | -9/Mines | Destroyed 10 combat bots 1453 | -9/Mines | Lost 4 parts (1n2u1w) 1479 | -9/Mines | Core integrity fell below 20% 1523 | -9/Mines | Destroyed by YI-UF0 with YI-UF0's Doublenader Last Messages --------------- Destroyed Asb. Hover Unit. Autogun destroyed. as-31109 destroyed. as-04822 destroyed. B%NZNMUOA2HZE/IORC6S1I The unstable cave ceiling collapses. Acquired 2 matter. Acquired 5 matter. The unstable cave ceiling collapses. Acquired 7 matter. as-03496 destroyed. as-76946 destroyed. as-68536 destroyed. Knocked back. System corrupted: Matter fused (-7). as-70926 destroyed. Acquired 31 matter. Cld. Ion Engine destroyed. The unstable cave ceiling collapses. Aluminum Leg destroyed. Map ----- +----------------------------------------------------+ | | | | | | | | | | | | | ???????????????????????????????????????? | | ???????????????????????????????????????? | | ???????????????????????????????########? | | ???????????????????????????????# * #? | | ???????????????????????????????# #? | | ???????????????????????????????# * ## | | ???????????????????????????????# = = # | | ???????????????????????????????# [ # | | ???????????????????????????????# ## | | ??????????????????????????####### # | | ?????????????????????????? # # ## | | ?????????????????????????? ## # #? | | ????????????????????????## # # #? | | ????????????????????????# # # #? | | ??????????????????????### # ##? | | ?????????????????????## < #?? | | ?????????????????????# ##?? | | ?????????????????????# % ###??? | | ??????????????????????# ##????? | | ??????????????????????# @ ###?????? | | ????????????????????# ###???????? | | ????????????????? g #?????????? | | ??????????????# t ##?????????? | | ??????????????# ### # ??????????? | | ??????????????#????##### #?????????? | | ???????????????????????# #?????????? | | ??????????????????????? % #?????????? | | ??????????????????????? % #?????????? | | ???????????????????????# ?????????? | | ???????????????????????## ?????????? | | ?????????????????????????# # #????????? | | ?????????????????????????? ###????????? | | ?????????????????????????? #??????????? | | ??????????????????????????$ #??????????? | | ?????????????????????????? ???????????? | | ???????????????????????????????????????? | | ???????????????????????????????????????? | | ???????????????????????????????????????? | | ???????????????????????????????????????? | | ???????????????????????????????????????? | | ???????????????????????????????????????? | | ???????????????????????????????????????? | | ???????????????????????????????????????? | | ???????????????????????????????????????? | +----------------------------------------------------+ Best States ------------- Heat Dissipation 64 Energy Generation 14 Energy Capacity 280 Matter Stores 300 Matter Capacity 300 Sight Range 16 Terrain Scan Density 10 Resistance: KI 20 Resistance: TH 20 Resistance: EX 20 Resistance: EM 20 Resistance: I 20 Resistance: S 20 Resistance: P 20 Evasion (%) 63 Targeting Accuracy 6 Offensive Hacking 20 Item Schematics ----------------- Lgt. Nuclear Core | -9/Materials | Scanalyzed Katana | -9/Materials | Scanalyzed Mni. Grenade Launcher | -9/Materials | Scanalyzed Robot Schematics ------------------ None Fabricated ------------ Nothing Repaired ---------- Nothing Alien Tech Used ----------------- None Achievements -------------- None Challenges ------------ None Game ------ Seed PartitionBoltLegs Manual? 0 Play Time 00:16:24 Cumulative 79.6 hours Start 2025.07.23 @ 08:28:45 End 2025.07.23 @ 08:44:59 Sessions 1 Manual Loads 0 Difficulty Adventurer Special Mode None Game No. 102 Rogue 13 Adventurer 89 Explorer 0 Win Type - Total 0 Types 0/0/0/0/0/0/0/0/0/0 Lore% 60 Gallery% 57 Achievement% 46 Wizard Run 0 Options --------- Layout 1 ASCII 0 Keyboard 0 Movement Mouse Keybinds 0 Fullscreen 1 Font 32/SmallcapsGlow Map View 50x35 Zoom Use 0% Tactical HUD 0 Map Filters NONE Filters NONE Steam 1 RUN: 65839552-ac11-433e-9239-779d0b68a509